[Event "FIDE World Cadets GU12 2022"]
[Site "Batumi"]
[Date "2022.09.17"]
[Round "2.7"]
[White "Shubhi Gupta"]
[Black "Khafizova, Diana"]
[Result "1-0"]
[ECO "E61"]
[WhiteElo "1733"]
[BlackElo "1411"]
[Annotator "NA COMBH"]
[PlyCount "119"]
[EventDate "2022.09.16"]
[EventType "swiss"]
[EventCountry "GEO"]
[SourceTitle "playchess.com"]
[Source "ChessBase"]
[SourceQuality "1"]
[TimeControl "5400+30"]

1. d4 {[%emt 0:01:00]} Nf6 {[%emt 0:01:00]} 2. Nf3 {[%emt 0:01:30]} d6 {[%emt 0:00:00]} 3. Bg5 {[%emt 0:00:30]} Nbd7 {[%emt 0:00:00]} 4. c4 {[%emt 0:01:30]} g6 {[%emt 0:00:30]} 5. Nc3 {[%emt 0:00:30]} Bg7 {[%emt 0:00:30]} 6. e3 {[%emt 0:00:30]} O-O {[%emt 0:00:30]} 7. Be2 {[%emt 0:00:00]} e5 {[%emt 0:01:30]} 8. Qc2 {[%emt 0:01:00]} Re8 {[%emt 0:01:30]} 9. O-O {[%emt 0:01:30]} h6 {[%emt 0:02:30]} 10. Bh4 {[%emt 0:00:30]} g5 {[%emt 0:01:30]} 11. Bg3 {[%emt 0:00:30]} Nh5 {[%emt 0:02:30]} 12. dxe5 {[%emt 0:06:30]} Nxg3 {[%emt 0:02:30]} 13. hxg3 {[%emt 0:00:30]} dxe5 {[%emt 0:00:00]} 14. Rfd1 {[%emt 0:01:30]} c6 {[%emt 0:01:00]} 15. Ne4 {[%emt 0:02:30]} Qc7 {[%emt 0:02:30]} 16. Nd6 {[%emt 0:06:30]} Re6 {[%emt 0:03:30]} 17. c5 {[%emt 0:03:30]} b5 {[%emt 0:05:30]} 18. Rac1 {[%emt 0:04:30]} Nf6 {[%emt 0:04:30]} 19. Nd2 {[%emt 0:05:30]} Bf8 {[%emt 0:03:30]} 20. N2e4 {[%emt 0:03:30]} Nxe4 {[%emt 0:06:30]} 21. Qxe4 {[%emt 0:02:30]} Bb7 {[%emt 0:06:30]} 22. Bg4 {[%emt 0:03:30]} Rxd6 {[%emt 0:03:30]} 23. cxd6 {[%emt 0:01:30]} Bxd6 {[%emt 0:01:30]} 24. Qf5 {[%emt 0:01:30]} Bc8 {[%emt 0:04:30]} 25. Qf3 {[%emt 0:01:30]} Bb7 {[%emt 0:01:30]} 26. Qf6 {[%emt 0:00:30]} Rd8 {[%emt 0:04:30]} 27. Qxh6 {[%emt 0:01:30]} Qe7 {[%emt 0:01:30]} 28. Bf5 {[%emt 0:00:30]} f6 {[%emt 0:01:30]} 29. Qg6+ {[%emt 0:01:30]} Qg7 {[%emt 0:03:30]} 30. Qxg7+ {[%emt 0:00:30]} Kxg7 {[%emt 0:00:30]} 31. Be4 {[%emt 0:00:30]} a6 {[%emt 0:00:30]} 32. Bxc6 {[%emt 0:00:30]} Bc8 {[%emt 0:00:30]} 33. Bf3 {[%emt 0:00:30]} Bf5 {[%emt 0:02:30]} 34. Rc6 {[%emt 0:00:30]} Be7 {[%emt 0:00:30]} 35. Rxd8 {[%emt 0:00:30]} Bxd8 {[%emt 0:00:30]} 36. Rxa6 {[%emt 0:00:00]} Be7 {[%emt 0:01:30]} 37. Rb6 {[%emt 0:00:00]} b4 {[%emt 0:00:30]} 38. Rb7 {[%emt 0:01:30]} Kf8 {[%emt 0:02:30]} 39. Bd5 {[%emt 0:00:30]} Ke8 {[%emt 0:02:30]} 40. e4 {[%emt 0:00:00]} Bc8 {[%emt 0:02:30]} 41. Rb8 {[%emt 0:01:00]} Kd7 {[%emt 0:00:30]} 42. Be6+ {[%emt 0:00:30]} Kxe6 {[%emt 0:00:30]} 43. Rxc8 {[%emt 0:00:00]} Kd7 {[%emt 0:00:00]} 44. Rc4 {[%emt 0:00:00]} Bd6 {[%emt 0:01:00]} 45. Kf1 {[%emt 0:00:30]} Ke6 {[%emt 0:00:30]} 46. Ke2 {[%emt 0:00:30]} f5 {[%emt 0:00:30]} 47. exf5+ {[%emt 0:00:30]} Kxf5 {[%emt 0:00:00]} 48. Kd3 {[%emt 0:00:30]} g4 {[%emt 0:01:00]} 49. f3 {[%emt 0:00:30]} gxf3 {[%emt 0:00:30]} 50. gxf3 {[%emt 0:00:30]} Ke6 {[%emt 0:00:30]} 51. Rc6 {[%emt 0:00:00]} Kd5 {[%emt 0:00:00]} 52. Rxd6+ {[%emt 0:00:00]} Kxd6 {[%emt 0:00:00]} 53. f4 {[%emt 0:00:30]} exf4 {[%emt 0:00:00]} 54. gxf4 {[%emt 0:00:30]} Kd5 {[%emt 0:00:00]} 55. f5 {[%emt 0:00:30]} b3 {[%emt 0:00:00]} 56. a4 {[%emt 0:00:00]} Ke5 {[%emt 0:00:00]} 57. a5 {[%emt 0:00:00]} Kxf5 {[%emt 0:00:00]} 58. a6 {[%emt 0:00:30]} Ke5 {[%emt 0:00:00]} 59. a7 {[%emt 0:00:30]} Kd6 {[%emt 0:00:30]} 60. a8=Q {[%emt 0:00:00]} 1-0

[Event "FIDE World Cadets GU12 2022"]
[Site "Batumi"]
[Date "2022.09.17"]
[Round "2.8"]
[White "Merkulova, Victoria"]
[Black "Tynyshtyk, Diana"]
[Result "1-0"]
[ECO "A15"]
[WhiteElo "1715"]
[BlackElo "1373"]
[Annotator "NA COMBH"]
[PlyCount "129"]
[EventDate "2022.09.16"]
[EventType "swiss"]
[EventCountry "GEO"]
[SourceTitle "playchess.com"]
[Source "ChessBase"]
[SourceQuality "1"]
[TimeControl "5400+30"]

1. c4 {[%emt 0:01:00]} Nf6 {[%emt 0:04:00]} 2. Nc3 {[%emt 0:00:00]} b6 {[%emt 0:03:30]} 3. Nf3 {[%emt 0:07:00]} Bb7 {[%emt 0:01:30]} 4. d3 {[%emt 0:04:30]} g6 {[%emt 0:07:30]} 5. e4 {[%emt 0:05:30]} d6 {[%emt 0:04:30]} 6. g3 {[%emt 0:02:30]} Bg7 {[%emt 0:02:30]} 7. Bg2 {[%emt 0:00:30]} O-O {[%emt 0:02:30]} 8. O-O {[%emt 0:00:30]} Re8 {[%emt 0:11:30]} 9. Be3 {[%emt 0:07:30]} e5 {[%emt 0:02:30]} 10. Nh4 {[%emt 0:04:30]} h6 {[%emt 0:05:30]} 11. Qd2 {[%emt 0:09:30]} Kh7 {[%emt 0:02:30]} 12. f4 {[%emt 0:05:30]} Nbd7 {[%emt 0:20:30]} 13. Nf3 {[%emt 0:06:30]} Qe7 {[%emt 0:03:30]} 14. Rae1 {[%emt 0:02:30]} Ng4 {[%emt 0:01:30]} 15. h4 {[%emt 0:05:30]} Ndf6 {[%emt 0:01:30]} 16. Bh3 {[%emt 0:04:30]} Bc8 {[%emt 0:05:08]} 17. f5 {[%emt 0:06:30]} Nxe3 {[%emt 0:00:58]} 18. Qxe3 {[%emt 0:00:30]} gxf5 {[%emt 0:05:52]} 19. exf5 {[%emt 0:00:30]} Nh5 {[%emt 0:01:32]} 20. Nd5 {[%emt 0:00:00]} Qd8 {[%emt 0:02:47]} 21. g4 {[%emt 0:01:00]} Nf6 {[%emt 0:00:36]} 22. Nxf6+ {[%emt 0:01:30]} Bxf6 {[%emt 0:00:39]} 23. g5 {[%emt 0:00:30]} Rg8 {[%emt 0:00:27]} 24. Kf2 {[%emt 0:02:30]} hxg5 {[%emt 0:00:51]} 25. Qe4 {[%emt 0:01:30]} Bb7 {[%emt 0:02:10]} 26. Qg4 {[%emt 0:04:27]} Bxf3 {[%emt 0:00:30]} 27. Kxf3 {[%emt 0:00:30]} Kh6 {[%emt 0:00:44]} 28. Rg1 {[%emt 0:02:29]} gxh4 {[%emt 0:02:17]} 29. Qe4 {[%emt 0:00:03]} Qe7 {[%emt 0:04:05]} 30. Bg4 {[%emt 0:04:58]} Bg5 {[%emt 0:00:38]} 31. Ke2 {[%emt 0:00:11]} f6 {[%emt 0:00:55]} 32. Bf3 {[%emt 0:00:19]} Rad8 {[%emt 0:00:16]} 33. Rh1 {[%emt 0:00:51]} Kg7 {[%emt 0:01:10]} 34. Reg1 {[%emt 0:00:30]} Kf8 {[%emt 0:00:21]} 35. Qd5 {[%emt 0:02:30]} c6 {[%emt 0:01:00]} 36. Qxc6 {[%emt 0:00:22]} Qh7 {[%emt 0:00:01]} 37. Qe4 {[%emt 0:02:11]} Rg7 {[%emt 0:00:25]} 38. Rh3 {[%emt 0:01:20]} Rc7 {[%emt 0:00:33]} 39. Qd5 {[%emt 0:01:12]} Rc5 {[%emt 0:00:29]} 40. Qe6 {[%emt 0:02:27]} Qe7 {[%emt 0:00:12]} 41. Bd5 {[%emt 0:00:56]} Qxe6 {[%emt 0:00:30]} 42. fxe6 {[%emt 0:02:00]} Ke7 {[%emt 0:00:41]} 43. b4 {[%emt 0:00:30]} Rc7 {[%emt 0:00:07]} 44. Rxh4 {[%emt 0:00:00]} Rf8 {[%emt 0:01:16]} 45. Rh7+ {[%emt 0:00:20]} Kd8 {[%emt 0:00:00]} 46. Rgh1 {[%emt 0:00:16]} f5 {[%emt 0:00:48]} 47. Rxc7 {[%emt 0:00:54]} Kxc7 {[%emt 0:00:30]} 48. Rh7+ {[%emt 0:00:00]} Kd8 {[%emt 0:00:44]} 49. Rd7+ {[%emt 0:00:09]} Kc8 {[%emt 0:00:30]} 50. Rxa7 {[%emt 0:00:30]} Rd8 {[%emt 0:00:17]} 51. e7 {[%emt 0:00:47]} Re8 {[%emt 0:00:30]} 52. Ra8+ {[%emt 0:00:30]} Kd7 {[%emt 0:00:00]} 53. Ra7+ {[%emt 0:00:00]} Kc8 {[%emt 0:00:29]} 54. Ra8+ {[%emt 0:00:23]} Kd7 {[%emt 0:00:30]} 55. Bc6+ {[%emt 0:00:30]} Kxc6 {[%emt 0:00:30]} 56. Rxe8 {[%emt 0:00:00]} Kd7 {[%emt 0:00:20]} 57. Rf8 {[%emt 0:00:00]} Bxe7 {[%emt 0:00:45]} 58. Rxf5 {[%emt 0:00:18]} Ke6 {[%emt 0:00:30]} 59. Rh5 {[%emt 0:00:00]} Bf6 {[%emt 0:00:56]} 60. Ke3 {[%emt 0:00:03]} d5 {[%emt 0:00:25]} 61. Rh6 {[%emt 0:01:12]} Kf5 {[%emt 0:00:44]} 62. Rxf6+ {[%emt 0:00:30]} Kxf6 {[%emt 0:00:30]} 63. cxd5 {[%emt 0:00:00]} Ke7 {[%emt 0:00:00]} 64. Ke4 {[%emt 0:00:26]} Kd6 {[%emt 0:00:26]} 65. a4 {[%emt 0:00:00]} 1-0

[Event "FIDE World Cadets GU12 2022"]
[Site "Batumi"]
[Date "2022.09.17"]
[Round "2.9"]
[White "Sivashankar, Samyukta"]
[Black "Huseynova, Lala"]
[Result "0-1"]
[ECO "B86"]
[WhiteElo "1406"]
[BlackElo "1702"]
[Annotator "NA COMBH"]
[PlyCount "96"]
[EventDate "2022.09.16"]
[EventType "swiss"]
[EventCountry "GEO"]
[SourceTitle "playchess.com"]
[Source "ChessBase"]
[SourceQuality "1"]
[TimeControl "5400+30"]

1. e4 {[%emt 0:01:00]} c5 {[%emt 0:01:00]} 2. Nf3 {[%emt 0:00:30]} d6 {[%emt 0:00:00]} 3. d4 {[%emt 0:00:30]} cxd4 {[%emt 0:01:00]} 4. Nxd4 {[%emt 0:00:30]} Nf6 {[%emt 0:00:00]} 5. Nc3 {[%emt 0:00:00]} a6 {[%emt 0:00:00]} 6. Bc4 {[%emt 0:01:00]} e6 {[%emt 0:00:30]} 7. Be3 {[%emt 0:02:30]} Be7 {[%emt 0:03:30]} 8. h3 {[%emt 0:03:30]} b5 {[%emt 0:03:30]} 9. Bb3 {[%emt 0:02:30]} Qc7 {[%emt 0:14:30]} 10. a3 {[%emt 0:07:30]} O-O {[%emt 0:00:30]} 11. O-O {[%emt 0:02:30]} Bb7 {[%emt 0:01:30]} 12. Qd3 {[%emt 0:02:30]} Nbd7 {[%emt 0:00:30]} 13. Rfe1 {[%emt 0:05:30]} Nc5 {[%emt 0:01:30]} 14. Qe2 {[%emt 0:05:30]} Ncxe4 {[%emt 0:04:30]} 15. Nxe4 {[%emt 0:02:30]} Nxe4 {[%emt 0:01:30]} 16. Rac1 {[%emt 0:04:30]} d5 {[%emt 0:04:30]} 17. Ba2 {[%emt 0:08:30]} Rac8 {[%emt 0:09:30]} 18. f3 {[%emt 0:05:30]} Nf6 {[%emt 0:03:30]} 19. Bf2 {[%emt 0:08:30]} Bd6 {[%emt 0:06:30]} 20. Kh1 {[%emt 0:01:30]} Nh5 {[%emt 0:01:30]} 21. Qd3 {[%emt 0:03:30]} Nf4 {[%emt 0:01:30]} 22. Qe3 {[%emt 0:01:30]} Ng6 {[%emt 0:16:30]} 23. Qd2 {[%emt 0:04:30]} Rfd8 {[%emt 0:02:30]} 24. c3 {[%emt 0:02:30]} Qd7 {[%emt 0:02:58]} 25. Bb1 {[%emt 0:02:30]} Bb8 {[%emt 0:02:17]} 26. Re2 {[%emt 0:02:31]} Qc7 {[%emt 0:01:16]} 27. Bg1 {[%emt 0:00:29]} Qg3 {[%emt 0:04:54]} 28. Qe1 {[%emt 0:01:30]} Qg5 {[%emt 0:01:06]} 29. Bh2 {[%emt 0:01:04]} Nf4 {[%emt 0:02:22]} 30. Rf2 {[%emt 0:02:02]} e5 {[%emt 0:00:44]} 31. Ne2 {[%emt 0:02:40]} Ne6 {[%emt 0:01:12]} 32. Rd1 {[%emt 0:02:02]} e4 {[%emt 0:01:23]} 33. Bxb8 {[%emt 0:00:56]} Rxb8 {[%emt 0:00:03]} 34. fxe4 {[%emt 0:01:07]} dxe4 {[%emt 0:00:23]} 35. Nd4 {[%emt 0:02:03]} e3 {[%emt 0:00:52]} 36. Re2 {[%emt 0:00:54]} Nf4 {[%emt 0:00:53]} 37. h4 {[%emt 0:00:48]} Qh5 {[%emt 0:02:52]} 38. Rc2 {[%emt 0:02:10]} e2 {[%emt 0:00:33]} 39. Rdd2 {[%emt 0:01:57]} Nxg2 {[%emt 0:00:39]} 40. Qg3 {[%emt 0:01:56]} e1=Q+ {[%emt 0:00:10]} 41. Qxe1 {[%emt 0:00:34]} Nxe1+ {[%emt 0:00:04]} 42. Kg1 {[%emt 0:00:47]} Nxc2 {[%emt 0:00:30]} 43. Bxc2 {[%emt 0:00:30]} Qg4+ {[%emt 0:00:00]} 44. Kf1 {[%emt 0:00:07]} Qf4+ {[%emt 0:00:15]} 45. Rf2 {[%emt 0:00:30]} Qc1+ {[%emt 0:00:00]} 46. Ke2 {[%emt 0:00:12]} Rxd4 {[%emt 0:00:10]} 47. cxd4 {[%emt 0:00:30]} Qxc2+ {[%emt 0:00:30]} 48. Kf1 {[%emt 0:00:30]} Qd1# {[%emt 0:00:00]} 0-1

[Event "FIDE World Cadets GU12 2022"]
[Site "Batumi"]
[Date "2022.09.17"]
[Round "2.10"]
[White "Urangoo, Gurvanbaatar"]
[Black "Maklakova, Naomi"]
[Result "0-1"]
[ECO "C87"]
[WhiteElo "1391"]
[BlackElo "1635"]
[Annotator "NA COMBH"]
[PlyCount "124"]
[EventDate "2022.09.16"]
[EventType "swiss"]
[EventCountry "GEO"]
[SourceTitle "playchess.com"]
[Source "ChessBase"]
[SourceQuality "1"]
[TimeControl "5400+30"]

1. e4 {[%emt 0:01:00]} e5 {[%emt 0:01:00]} 2. Nf3 {[%emt 0:00:30]} Nc6 {[%emt 0:00:30]} 3. Bb5 {[%emt 0:00:30]} a6 {[%emt 0:00:30]} 4. Ba4 {[%emt 0:00:30]} d6 {[%emt 0:00:30]} 5. c3 {[%emt 0:00:00]} Nf6 {[%emt 0:00:30]} 6. O-O {[%emt 0:07:00]} Be7 {[%emt 0:00:30]} 7. Re1 {[%emt 0:00:00]} O-O {[%emt 0:01:30]} 8. d4 {[%emt 0:01:00]} exd4 {[%emt 0:04:30]} 9. cxd4 {[%emt 0:02:30]} b5 {[%emt 0:03:30]} 10. Bc2 {[%emt 0:00:00]} Bg4 {[%emt 0:00:30]} 11. Be3 {[%emt 0:03:00]} Nb4 {[%emt 0:02:30]} 12. Nbd2 {[%emt 0:01:30]} Nxc2 {[%emt 0:02:30]} 13. Qxc2 {[%emt 0:00:30]} Rc8 {[%emt 0:00:30]} 14. d5 {[%emt 0:04:30]} Nd7 {[%emt 0:15:30]} 15. Nd4 {[%emt 0:03:30]} Nb8 {[%emt 0:05:30]} 16. a4 {[%emt 0:07:30]} Bf6 {[%emt 0:07:30]} 17. axb5 {[%emt 0:09:30]} Bxd4 {[%emt 0:00:30]} 18. Bxd4 {[%emt 0:00:30]} axb5 {[%emt 0:00:30]} 19. Qd3 {[%emt 0:02:30]} c5 {[%emt 0:01:30]} 20. Be3 {[%emt 0:08:30]} Bd7 {[%emt 0:16:30]} 21. f4 {[%emt 0:06:30]} Re8 {[%emt 0:11:30]} 22. Nf3 {[%emt 0:01:30]} c4 {[%emt 0:07:48]} 23. Qd4 {[%emt 0:02:30]} b4 {[%emt 0:02:49]} 24. Bd2 {[%emt 0:00:30]} b3 {[%emt 0:05:49]} 25. e5 {[%emt 0:06:30]} Bg4 {[%emt 0:01:00]} 26. Bc3 {[%emt 0:05:30]} Bxf3 {[%emt 0:00:46]} 27. e6 {[%emt 0:00:30]} Qf6 {[%emt 0:01:12]} 28. Qxf6 {[%emt 0:06:30]} gxf6 {[%emt 0:00:04]} 29. gxf3 {[%emt 0:00:30]} fxe6 {[%emt 0:00:30]} 30. dxe6 {[%emt 0:00:00]} d5 {[%emt 0:01:14]} 31. Kf2 {[%emt 0:01:00]} Nc6 {[%emt 0:01:43]} 32. Rad1 {[%emt 0:01:51]} d4 {[%emt 0:03:23]} 33. Bxd4 {[%emt 0:07:19]} Nxd4 {[%emt 0:00:07]} 34. Rxd4 {[%emt 0:00:30]} c3 {[%emt 0:00:09]} 35. bxc3 {[%emt 0:00:42]} Rxc3 {[%emt 0:00:04]} 36. f5 {[%emt 0:01:41]} b2 {[%emt 0:00:24]} 37. Rb4 {[%emt 0:00:25]} Rc2+ {[%emt 0:00:56]} 38. Re2 {[%emt 0:00:30]} Rc5 {[%emt 0:00:00]} 39. Rbxb2 {[%emt 0:03:58]} Rxf5 {[%emt 0:00:00]} 40. Rb6 {[%emt 0:00:49]} Kg7 {[%emt 0:00:56]} 41. Kg3 {[%emt 0:00:27]} Re5 {[%emt 0:00:45]} 42. Re4 {[%emt 0:03:38]} Re7 {[%emt 0:03:10]} 43. Kf4 {[%emt 0:00:30]} Rh5 {[%emt 0:00:30]} 44. Re2 {[%emt 0:00:06]} Rh4+ {[%emt 0:00:00]} 45. Kf5 {[%emt 0:00:30]} Rh5+ {[%emt 0:00:15]} 46. Kg4 {[%emt 0:00:30]} Rg5+ {[%emt 0:00:30]} 47. Kh4 {[%emt 0:00:30]} Kg6 {[%emt 0:00:00]} 48. Rd6 {[%emt 0:02:03]} Kf5 {[%emt 0:00:18]} 49. Rd7 {[%emt 0:02:01]} Rgg7 {[%emt 0:02:01]} 50. Rd5+ {[%emt 0:00:38]} Kf4 {[%emt 0:00:13]} 51. Rd3 {[%emt 0:00:39]} f5 {[%emt 0:00:27]} 52. Kh3 {[%emt 0:00:24]} Rg6 {[%emt 0:00:08]} 53. Rde3 {[%emt 0:00:44]} Reg7 {[%emt 0:00:35]} 54. Re4+ {[%emt 0:00:18]} fxe4 {[%emt 0:00:30]} 55. Rxe4+ {[%emt 0:00:16]} Kxf3 {[%emt 0:00:05]} 56. e7 {[%emt 0:00:30]} Rh6+ {[%emt 0:00:30]} 57. Rh4 {[%emt 0:00:30]} Rxh4+ {[%emt 0:00:00]} 58. Kxh4 {[%emt 0:00:00]} Rxe7 {[%emt 0:00:02]} 59. Kg5 {[%emt 0:00:00]} Kg2 {[%emt 0:00:36]} 60. h4 {[%emt 0:00:07]} Kh3 {[%emt 0:00:30]} 61. h5 {[%emt 0:00:30]} Re6 {[%emt 0:00:30]} 62. Kf5 {[%emt 0:00:00]} Ra6 {[%emt 0:00:00]} 0-1

[Event "FIDE World Cadets GU12 2022"]
[Site "Batumi"]
[Date "2022.09.17"]
[Round "2.11"]
[White "Li, Anna Sofie"]
[Black "Zhumagali, Raian"]
[Result "0-1"]
[ECO "B42"]
[WhiteElo "1590"]
[BlackElo "1278"]
[Annotator "NA COMBH"]
[PlyCount "134"]
[EventDate "2022.09.16"]
[EventType "swiss"]
[EventCountry "GEO"]
[SourceTitle "playchess.com"]
[Source "ChessBase"]
[SourceQuality "1"]
[TimeControl "5400+30"]

1. e4 {[%emt 0:01:00]} c5 {[%emt 0:01:00]} 2. Nf3 {[%emt 0:00:30]} d6 {[%emt 0:00:30]} 3. d4 {[%emt 0:00:30]} cxd4 {[%emt 0:00:30]} 4. Nxd4 {[%emt 0:00:30]} Nf6 {[%emt 0:00:30]} 5. Nc3 {[%emt 0:00:30]} a6 {[%emt 0:00:00]} 6. Bd3 {[%emt 0:00:00]} e6 {[%emt 0:00:00]} 7. O-O {[%emt 0:00:00]} Be7 {[%emt 0:03:30]} 8. f3 {[%emt 0:03:30]} Qc7 {[%emt 0:03:30]} 9. Be3 {[%emt 0:02:30]} O-O {[%emt 0:02:30]} 10. Qd2 {[%emt 0:02:30]} b5 {[%emt 0:03:30]} 11. a4 {[%emt 0:03:30]} b4 {[%emt 0:00:30]} 12. Na2 {[%emt 0:02:30]} d5 {[%emt 0:03:30]} 13. Nxb4 {[%emt 0:06:30]} dxe4 {[%emt 0:03:30]} 14. fxe4 {[%emt 0:04:30]} Qb7 {[%emt 0:05:30]} 15. Na2 {[%emt 0:07:30]} Nxe4 {[%emt 0:02:30]} 16. Qe2 {[%emt 0:04:30]} Nc5 {[%emt 0:12:30]} 17. b3 {[%emt 0:10:30]} Nxd3 {[%emt 0:01:30]} 18. Qxd3 {[%emt 0:01:30]} e5 {[%emt 0:05:30]} 19. Nf5 {[%emt 0:01:30]} Bxf5 {[%emt 0:02:30]} 20. Qxf5 {[%emt 0:03:30]} Nc6 {[%emt 0:12:30]} 21. Nc3 {[%emt 0:03:30]} Rad8 {[%emt 0:02:30]} 22. Rad1 {[%emt 0:05:30]} Qc8 {[%emt 0:08:30]} 23. Rxd8 {[%emt 0:08:30]} Qxd8 {[%emt 0:00:30]} 24. Rd1 {[%emt 0:06:30]} Qc8 {[%emt 0:02:30]} 25. Qxc8 {[%emt 0:02:53]} Rxc8 {[%emt 0:00:30]} 26. Rd7 {[%emt 0:00:40]} Bf8 {[%emt 0:03:30]} 27. Ne4 {[%emt 0:02:15]} f6 {[%emt 0:04:17]} 28. Bc5 {[%emt 0:02:55]} Nd4 {[%emt 0:04:24]} 29. Bxd4 {[%emt 0:02:04]} exd4 {[%emt 0:00:06]} 30. Rxd4 {[%emt 0:02:10]} Rxc2 {[%emt 0:00:10]} 31. Rd2 {[%emt 0:01:22]} Rc1+ {[%emt 0:01:57]} 32. Kf2 {[%emt 0:00:12]} Rb1 {[%emt 0:01:20]} 33. Rd3 {[%emt 0:00:42]} Kf7 {[%emt 0:00:14]} 34. Nd2 {[%emt 0:01:47]} Rb2 {[%emt 0:00:16]} 35. Ke2 {[%emt 0:00:37]} Bb4 {[%emt 0:00:14]} 36. Rd4 {[%emt 0:01:04]} Bxd2 {[%emt 0:00:25]} 37. Rxd2 {[%emt 0:00:02]} Rxb3 {[%emt 0:01:17]} 38. Rd6 {[%emt 0:00:37]} Rb2+ {[%emt 0:00:08]} 39. Kf3 {[%emt 0:00:59]} Rb3+ {[%emt 0:00:30]} 40. Kf2 {[%emt 0:00:00]} Rb2+ {[%emt 0:00:43]} 41. Kf3 {[%emt 0:00:00]} a5 {[%emt 0:00:50]} 42. Ra6 {[%emt 0:00:31]} Ra2 {[%emt 0:00:23]} 43. Rxa5 {[%emt 0:00:29]} g5 {[%emt 0:00:04]} 44. Ra7+ {[%emt 0:00:49]} Kg6 {[%emt 0:00:08]} 45. a5 {[%emt 0:00:44]} h5 {[%emt 0:00:10]} 46. a6 {[%emt 0:00:42]} Kf5 {[%emt 0:00:22]} 47. Ra8 {[%emt 0:02:17]} g4+ {[%emt 0:00:48]} 48. Kg3 {[%emt 0:00:55]} h4+ {[%emt 0:01:41]} 49. Kxh4 {[%emt 0:00:30]} Rxg2 {[%emt 0:00:05]} 50. h3 {[%emt 0:00:56]} Rh2 {[%emt 0:00:37]} 51. Kg3 {[%emt 0:00:30]} Rxh3+ {[%emt 0:00:00]} 52. Kf2 {[%emt 0:00:20]} Ra3 {[%emt 0:00:50]} 53. a7 {[%emt 0:00:42]} Ra6 {[%emt 0:00:53]} 54. Kg3 {[%emt 0:00:42]} Ra2 {[%emt 0:00:39]} 55. Rb8 {[%emt 0:02:15]} Ra3+ {[%emt 0:00:30]} 56. Kf2 {[%emt 0:00:00]} Rxa7 {[%emt 0:00:24]} 57. Kg3 {[%emt 0:00:30]} Ra3+ {[%emt 0:00:30]} 58. Kf2 {[%emt 0:00:00]} Kg5 {[%emt 0:00:00]} 59. Rg8+ {[%emt 0:00:22]} Kf4 {[%emt 0:00:29]} 60. Rb8 {[%emt 0:00:06]} Ra2+ {[%emt 0:00:00]} 61. Kf1 {[%emt 0:00:30]} f5 {[%emt 0:00:16]} 62. Rb5 {[%emt 0:00:30]} g3 {[%emt 0:00:30]} 63. Rb4+ {[%emt 0:00:30]} Kf3 {[%emt 0:00:30]} 64. Rb3+ {[%emt 0:00:30]} Kg4 {[%emt 0:00:00]} 65. Rb4+ {[%emt 0:00:00]} f4 {[%emt 0:00:00]} 66. Rc4 {[%emt 0:01:41]} Kh3 {[%emt 0:00:26]} 67. Rc3 {[%emt 0:01:18]} Kh2 {[%emt 0:00:38]} 0-1

[Event "FIDE World Cadets GU12 2022"]
[Site "Batumi"]
[Date "2022.09.17"]
[Round "2.12"]
[White "Altynbek, Aiaru"]
[Black "Shreya G Hipparagi"]
[Result "1-0"]
[ECO "D46"]
[WhiteElo "1373"]
[BlackElo "1574"]
[Annotator "NA COMBH"]
[PlyCount "93"]
[EventDate "2022.09.16"]
[EventType "swiss"]
[EventCountry "GEO"]
[SourceTitle "playchess.com"]
[Source "ChessBase"]
[SourceQuality "1"]
[TimeControl "5400+30"]

1. d4 {[%emt 0:01:00]} d5 {[%emt 0:01:00]} 2. c4 {[%emt 0:00:30]} c6 {[%emt 0:00:30]} 3. Nc3 {[%emt 0:00:30]} Nf6 {[%emt 0:00:30]} 4. e3 {[%emt 0:01:30]} e6 {[%emt 0:02:30]} 5. Qc2 {[%emt 0:02:30]} Be7 {[%emt 0:03:30]} 6. b3 {[%emt 0:01:30]} O-O {[%emt 0:04:30]} 7. Nf3 {[%emt 0:03:30]} Nbd7 {[%emt 0:02:30]} 8. Bd3 {[%emt 0:03:30]} b6 {[%emt 0:02:30]} 9. O-O {[%emt 0:07:30]} Bb7 {[%emt 0:01:30]} 10. Bb2 {[%emt 0:01:30]} c5 {[%emt 0:08:30]} 11. cxd5 {[%emt 0:05:30]} exd5 {[%emt 0:02:30]} 12. Rfe1 {[%emt 0:08:30]} Rc8 {[%emt 0:02:30]} 13. Ne5 {[%emt 0:11:30]} h6 {[%emt 0:15:30]} 14. Bf5 {[%emt 0:04:30]} cxd4 {[%emt 0:04:30]} 15. exd4 {[%emt 0:03:30]} Rc7 {[%emt 0:02:30]} 16. Qe2 {[%emt 0:03:30]} Bb4 {[%emt 0:02:30]} 17. Rec1 {[%emt 0:05:30]} Re8 {[%emt 0:06:30]} 18. Nb5 {[%emt 0:09:30]} Rxc1+ {[%emt 0:01:30]} 19. Rxc1 {[%emt 0:00:30]} Ba6 {[%emt 0:02:30]} 20. Bd3 {[%emt 0:00:30]} Nxe5 {[%emt 0:08:30]} 21. dxe5 {[%emt 0:01:30]} Ne4 {[%emt 0:02:30]} 22. Nc7 {[%emt 0:15:44]} Bxd3 {[%emt 0:00:30]} 23. Qxd3 {[%emt 0:00:30]} Bc5 {[%emt 0:00:30]} 24. Nxe8 {[%emt 0:05:47]} Nxf2 {[%emt 0:02:30]} 25. Qf3 {[%emt 0:00:25]} Qxe8 {[%emt 0:01:31]} 26. Rxc5 {[%emt 0:00:30]} bxc5 {[%emt 0:01:00]} 27. Kxf2 {[%emt 0:00:34]} Qc6 {[%emt 0:00:28]} 28. Qd3 {[%emt 0:01:42]} a6 {[%emt 0:01:45]} 29. Qc3 {[%emt 0:00:42]} d4 {[%emt 0:01:33]} 30. Qf3 {[%emt 0:00:37]} Qe6 {[%emt 0:01:09]} 31. Qa8+ {[%emt 0:00:30]} Kh7 {[%emt 0:00:30]} 32. Qe4+ {[%emt 0:00:00]} Kg8 {[%emt 0:01:33]} 33. Ba3 {[%emt 0:00:28]} c4 {[%emt 0:00:20]} 34. bxc4 {[%emt 0:01:25]} Qxc4 {[%emt 0:00:30]} 35. Bb2 {[%emt 0:00:00]} Qxa2 {[%emt 0:00:28]} 36. Qxd4 {[%emt 0:00:24]} Qe6 {[%emt 0:00:15]} 37. Ke3 {[%emt 0:00:12]} Qb3+ {[%emt 0:00:47]} 38. Bc3 {[%emt 0:00:30]} Qe6 {[%emt 0:00:00]} 39. Qd6 {[%emt 0:00:30]} Qc8 {[%emt 0:00:29]} 40. Qd4 {[%emt 0:01:07]} Qe6 {[%emt 0:00:12]} 41. h3 {[%emt 0:00:39]} Qc6 {[%emt 0:00:21]} 42. Kf2 {[%emt 0:00:32]} Qe6 {[%emt 0:00:20]} 43. g4 {[%emt 0:00:30]} Qc6 {[%emt 0:00:14]} 44. e6 {[%emt 0:00:17]} f6 {[%emt 0:01:14]} 45. Qd8+ {[%emt 0:00:41]} Kh7 {[%emt 0:00:09]} 46. e7 {[%emt 0:00:30]} Qc5+ {[%emt 0:00:30]} 47. Ke2 {[%emt 0:00:15]} 1-0